fUSD/lending_fUSD_20251210
["ID","MTS","AMOUNT","RATE_DAILY","PERIOD"]
[398097298,1765363955394,-178.44508628,0.000274,4]
[398097299,1765363955404,-178.44508628,0.000274,4]
[398097300,1765363955414,-178.44508628,0.000274,4]
[398097301,1765363955423,-178.44508628,0.000274,4]
[398097302,1765363955433,-178.44,0.000274,4]
[398097303,1765363955443,-5095.07,0.000274,2]
[398097304,1765363955453,-5095.07,0.000274,2]
[398097305,1765363955463,-391.0,0.00027402,14]
[398097306,1765363955473,-199.61485126,0.000275,2]
[398097307,1765363955483,-545.30237693,0.000275,2]
[398097308,1765363955492,-200.0,0.000275,30]
[398097309,1765363955502,-1000.0,0.000275,7]
[398097310,1765363955514,-4691.16,0.00027671,2]
[398097311,1765363955525,-789.65255287,0.00027684,7]
[398097312,1765363955534,-391.0,0.00027789,14]
[398097313,1765363955544,-1000.0,0.00027872,14]
[398097314,1765363955553,-500.0,0.00027899,30]
[398097315,1765363955562,-400.0,0.00027945,5]
[398097316,1765363955572,-250.0,0.00027945,5]
[398097317,1765363955581,-270.0455652,0.00027946,2]
[398097318,1765363955591,-535.7238991,0.00027975,2]
[398097319,1765363955600,-70807.59877899,0.00028,2]
[398097320,1765363955609,-50500.85820547,0.00028,2]
[398097321,1765363955619,-160.0,0.00028,2]
[398097322,1765363955628,-150.0,0.00028,90]
[398097323,1765363955637,-150.0,0.00028,60]
[398097324,1765363955647,-300.0,0.00028,120]
[398097325,1765363955656,-1024.0,0.00028,2]
[398097326,1765363955666,-564.0,0.00028082,2]
[398097327,1765363955675,-2000.0,0.000281,2]
[398097328,1765363955685,-3000.0,0.00028146,14]
[398097329,1765363955695,-1900.0,0.00028146,14]
[398097330,1765363955705,-789.65255287,0.00028263,7]
[398097331,1765363955715,-744.78,0.000283,30]
[398097332,1765363955726,-391.0,0.00028417,14]
[398097333,1765363955736,-155.07,0.00028493,2]
[398097334,1765363955746,-600.0,0.00028493,5]
[398097335,1765363955757,-350.0,0.00028493,5]
[398097336,1765363955766,-280.03725112,0.00028494,2]
[398097337,1765363955776,-151.0,0.000285,2]
[398097338,1765363955786,-2613.266622,0.000285,2]
[398097339,1765363955795,-564.0,0.00028767,2]
[398097340,1765363955804,-151.0,0.00028767,5]
[398097341,1765363955814,-151.0,0.00028767,5]
[398097342,1765363955823,-151.0,0.00028767,5]
[398097343,1765363955833,-151.0,0.00028767,5]
[398097344,1765363955842,-151.0,0.00028767,5]
[398097345,1765363955851,-151.0,0.00028767,5]
[398097346,1765363955862,-151.0,0.00028767,5]
[398097347,1765363955872,-151.0,0.00028767,5]
[398097348,1765363955881,-151.0,0.00028767,5]
[398097349,1765363955893,-151.0,0.00028767,5]
[398097350,1765363955902,-212.758192,0.00028767,5]
[398097351,1765363955912,-789.65255287,0.00028842,7]
[398097352,1765363955923,-500.0,0.00028899,30]
[398097353,1765363955932,-391.0,0.00028997,14]
[398097354,1765363955941,-167.0,0.00028997,14]
[398097355,1765363955951,-1040.64843437,0.00029,30]
[398097356,1765363955961,-616.78362,0.00029,2]
[398097357,1765363955970,-150.0,0.00029,120]
[398097358,1765363955980,-550.0,0.00029,2]
[398097359,1765363955994,-1500.0,0.00029,2]
[398097360,1765363956003,-1024.0,0.00029,2]
[398097361,1765363956013,-800.0,0.00029041,5]
[398097362,1765363956022,-450.0,0.00029041,5]
[398097363,1765363956032,-290.39862941,0.00029042,2]
[398097364,1765363956042,-789.65255287,0.00029421,7]
[398097365,1765363956051,-391.0,0.00029432,14]
[398097366,1765363956060,-564.0,0.00029452,2]
[398097367,1765363956073,-2018.47,0.00029492,30]
[398097368,1765363956083,-3858.52149832,0.000295,120]
[398097369,1765363956093,-2397.92971526,0.000295,7]
[398097370,1765363956104,-1500.0,0.000295,2]
[398097371,1765363956113,-283.62,0.00029507,30]
[398097372,1765363956124,-1000.0,0.00029516,14]
[398097373,1765363956133,-960.5,0.00029589,2]
[398097374,1765363956143,-251.67960419,0.00029589,5]
[398097375,1765363956152,-550.0,0.00029589,5]
[398097376,1765363956162,-301.1433787,0.0002959,2]
[398097377,1765363956171,-3000.0,0.0002979,14]
[398097378,1765363956181,-1900.0,0.0002979,14]
[398097379,1765363956190,-1000.0,0.00029899,30]
[398097380,1765363956199,-78307.8500256,0.000299,2]
[398097381,1765363956209,-235.36020081,0.0002999,2]
[398097382,1765363956218,-4682.16441719,0.0003,2]
[398097383,1765363956227,-19723.37324266,0.0003,2]
[398097384,1765363956236,-1802.69382903,0.0003,2]
[398097385,1765363956245,-437.66869301,0.0003,2]
[398097386,1765363956254,-161.69856562,0.0003,2]
[398097387,1765363956263,-727.0,0.0003,7]
[398097388,1765363956273,-2002.05540612,0.0003,2]
[398097389,1765363956282,-150.0,0.0003,2]
[398097390,1765363956292,-150.0,0.0003,2]
[398097391,1765363956301,-1000.0,0.0003,7]
[398097392,1765363956311,-1000.0,0.0003,7]
[398097393,1765363956320,-151.0,0.0003,2]
[398097394,1765363956334,-230.89587181,0.0003,2]
[398097395,1765363956345,-150.0,0.0003,2]
[398097396,1765363956356,-700.0,0.0003,10]
[398097397,1765363956366,-2993.22831998,0.0003,2]
[398097398,1765363956376,-158.0,0.0003,2]
[398097399,1765363956387,-115298.53585261,0.0003,5]
[398097400,1765363956397,-254.11717042,0.0003,14]
[398097401,1765363956407,-5013.0,0.0003,5]
[398097402,1765363956418,-789.65255287,0.0003,7]
[398097403,1765363956427,-150.0,0.0003,2]
[398097404,1765363956436,-3107.60074655,0.0003,120]
[398097405,1765363956446,-150.0,0.0003,90]
[398097406,1765363956456,-150.0,0.0003,60]
[398097407,1765363956466,-257.0,0.0003,120]
[398097408,1765363956476,-268.6,0.0003,2]
[398097409,1765363956488,-2000.0,0.0003,120]
[398097410,1765363956499,-151.70492195,0.0003,120]
[398097411,1765363956509,-200.0,0.0003,120]
[398097412,1765363956519,-300.0782387,0.0003,5]
[398097413,1765363956529,-480.70745097,0.0003,120]
[398097414,1765363956539,-480.70745097,0.0003,30]
[398097415,1765363956549,-171.80829703,0.0003,5]
[398097416,1765363956558,-1500.0,0.0003,2]
[398097417,1765363956568,-1024.0,0.0003,7]
[398097418,1765363956578,-1064.84094936,0.0003013,2]
[398097419,1765363956588,-13745.19060904,0.0003013,2]
[398097420,1765363956598,-628.91833578,0.0003013,2]
[398097421,1765363956610,-5019.95961314,0.0003013,2]
[398097422,1765363956619,-200.13528711,0.0003013,2]
[398097423,1765363956629,-1214.6533088,0.0003013,2]
[398097424,1765363956640,-7671.98879571,0.0003013,2]
[398097425,1765363956650,-200.0,0.0003013,2]
[398097426,1765363956660,-1494.70101233,0.0003013,5]
[398097427,1765363956670,-2000.0,0.00030136,120]
[398097428,1765363956681,-2000.0,0.00030136,120]
[398097429,1765363956691,-2000.0,0.00030136,120]
[398097430,1765363956701,-2000.0,0.00030136,120]
[398097431,1765363956711,-2000.0,0.00030136,120]
[398097432,1765363956721,-2000.0,0.00030136,120]
[398097433,1765363956730,-2000.0,0.00030136,120]
[398097434,1765363956739,-2000.0,0.00030136,120]
[398097435,1765363956749,-315.62479084,0.00030136,120]
[398097436,1765363956758,-1552.49,0.00030137,2]
[398097437,1765363956768,-234.68525814,0.00030137,2]
[398097438,1765363956778,-564.0,0.00030137,7]
[398097439,1765363956788,-300.01816352,0.00030137,5]
[398097440,1765363956798,-150.53,0.00030411,2]
[398097441,1765363956807,-178.09,0.00030411,2]
[398097442,1765363956817,-622.65,0.00030411,2]
[398097443,1765363956827,-356.14,0.00030411,2]
[398097444,1765363956836,-1216.09,0.00030411,2]
[398097445,1765363956846,-178.09,0.00030411,2]
[398097446,1765363956856,-1216.09,0.00030411,2]
[398097447,1765363956866,-1214.56,0.00030411,2]
[398097448,1765363956875,-178.01,0.00030411,2]
[398097449,1765363956885,-391.0,0.00030447,14]
[398097450,1765363956896,-564.0,0.00030822,7]
[398097451,1765363956907,-2590.63511125,0.0003084,2]
[398097452,1765363956919,-1000.0,0.00030899,30]
[398097453,1765363956928,-78389.5491687,0.0003095,2]
[398097454,1765363956939,-1001.16301946,0.00031,2]
[398097455,1765363956949,-355.28092752,0.00031,2]
[398097456,1765363956959,-150.0,0.00031,4]
[398097457,1765363956970,-150.0,0.00031,4]
[398097458,1765363956981,-150.0,0.00031,4]
[398097459,1765363956994,-393.95,0.00031,30]
[398097460,1765363957004,-150.0,0.00031,120]
[398097461,1765363957014,-339.39490515,0.00031,5]
[398097462,1765363957024,-600.0,0.00031,2]
[398097463,1765363957035,-1000.0,0.0003116,14]
[398097464,1765363957044,-152.54,0.00031233,2]
[398097465,1765363957054,-250.0,0.000314,120]
[398097466,1765363957064,-19536.7253502,0.0003143,4]
[398097467,1765363957075,-3000.0,0.00031434,14]
[398097468,1765363957086,-1900.0,0.00031434,14]
[398097469,1765363957098,-195.81625657,0.000315,2]
[398097470,1765363957109,-150.0,0.000315,2]
[398097471,1765363957120,-560.98989783,0.000315,120]
[398097472,1765363957132,-564.0,0.00031507,7]
[398097473,1765363957142,-191.13,0.00031644,91]
[398097474,1765363957152,-281.37844937,0.00031688,12]
[398097475,1765363957161,-1063.25866393,0.00031788,12]
[398097476,1765363957171,-2000.0,0.000318,2]
[398097477,1765363957180,-1000.0,0.00031899,30]
[398097478,1765363957190,-1444.0,0.00031945,120]
[398097479,1765363957200,-300.0,0.00032,2]
[398097480,1765363957210,-200.0,0.00032,6]
[398097481,1765363957220,-200.0,0.00032,6]
[398097482,1765363957231,-151.0,0.00032,2]
[398097483,1765363957241,-200.0,0.00032,6]
[398097484,1765363957252,-150.0,0.00032,90]
[398097485,1765363957264,-150.0,0.00032,60]
[398097486,1765363957274,-250.0,0.00032,120]
[398097487,1765363957284,-945.37184121,0.00032,120]
[398097488,1765363957294,-329.48610475,0.00032,2]
[398097489,1765363957304,-2893.77007941,0.00032,120]
[398097490,1765363957315,-9980.898,0.00032,120]
[398097491,1765363957325,-10771.22240445,0.00032,120]
[398097492,1765363957335,-64854.45,0.00032,7]
[398097493,1765363957345,-283.62,0.00032009,30]
[398097494,1765363957354,-240.46791401,0.00032018,14]
[398097495,1765363957363,-355.34,0.00032055,2]
[398097496,1765363957373,-564.0,0.00032192,7]
[398097497,1765363957383,-886.75761675,0.000323,2]
[398097498,1765363957393,-150.0,0.00032395,120]
[398097499,1765363957402,-150.0,0.00032483,120]
[398097500,1765363957411,-4790.03467945,0.000328,2]
[398097501,1765363957420,-1000.0,0.00032804,14]
[398097502,1765363957430,-210.0,0.0003286,30]
[398097503,1765363957439,-2070.60712591,0.00032876,14]
[398097504,1765363957449,-2000.0,0.00032876,14]
[398097505,1765363957458,-1116.11724579,0.00032876,14]
[398097506,1765363957467,-770.60421025,0.00032876,14]
[398097507,1765363957657,-2000.0,0.00032876,14]
[398097508,1765363957666,-2000.0,0.00032876,14]
[398097509,1765363957676,-2000.0,0.00032876,14]
[398097510,1765363957685,-2000.0,0.00032876,14]
[398097511,1765363957694,-2000.0,0.00032876,14]
[398097512,1765363957703,-2000.0,0.00032876,14]
[398097513,1765363957712,-2000.0,0.00032876,14]
[398097514,1765363957721,-2000.0,0.00032876,14]
[398097515,1765363957730,-2000.0,0.00032876,14]
[398097516,1765363957739,-2000.0,0.00032876,14]
[398097517,1765363957748,-2000.0,0.00032876,14]
[398097518,1765363957758,-2000.0,0.00032876,14]
[398097519,1765363957767,-1011.52391963,0.00032876,14]
[398097520,1765363957776,-500.0,0.00032876,2]
[398097521,1765363957785,-500.0,0.00032876,2]
[398097522,1765363957794,-500.0,0.00032876,2]
[398097523,1765363957804,-500.0,0.00032876,2]
[398097524,1765363957812,-500.0,0.00032876,2]
[398097525,1765363957821,-500.0,0.00032876,2]
[398097526,1765363957830,-500.0,0.00032876,2]
[398097527,1765363957839,-500.0,0.00032876,2]
[398097528,1765363957848,-500.0,0.00032876,2]
[398097529,1765363957858,-500.0,0.00032876,2]
[398097530,1765363957868,-500.0,0.00032876,2]
[398097531,1765363957877,-500.0,0.00032876,2]
[398097532,1765363957887,-500.0,0.00032876,2]
[398097533,1765363957896,-220.2350894,0.00032876,2]
[398097534,1765363957905,-342.56738937,0.00032876,2]
[398097535,1765363957915,-360.57245738,0.00032876,2]
[398097536,1765363957926,-500.0,0.00032876,2]
[398097537,1765363957935,-154.38333961,0.00032876,2]
[398097538,1765363957944,-531.59901333,0.00032876,2]
[398097539,1765363957953,-541.32969318,0.00032876,2]
[398097540,1765363957962,-500.0,0.00032876,2]
[398097541,1765363957971,-354.32003507,0.00032876,2]
[398097542,1765363957979,-500.0,0.00032876,2]
[398097543,1765363957991,-500.0,0.00032876,2]
[398097544,1765363958002,-500.0,0.00032876,2]
[398097545,1765363958011,-360.92045236,0.00032876,2]
[398097546,1765363958020,-213.08727156,0.00032876,2]
[398097547,1765363958031,-500.0,0.00032876,2]
[398097548,1765363958040,-500.0,0.00032876,2]
[398097549,1765363958050,-500.0,0.00032876,2]
[398097550,1765363958060,-500.0,0.00032876,2]
[398097551,1765363958072,-500.0,0.00032876,2]
[398097552,1765363958081,-504.31639925,0.00032876,2]
[398097553,1765363958090,-500.0,0.00032876,2]
[398097554,1765363958100,-504.31639925,0.00032876,2]
[398097555,1765363958109,-500.0,0.00032876,2]
[398097556,1765363958118,-504.31639925,0.00032876,2]
[398097557,1765363958127,-157.28880037,0.00032876,2]
[398097558,1765363958137,-500.0,0.00032876,2]
[398097559,1765363958146,-504.31639925,0.00032876,2]
[398097560,1765363958155,-504.31639925,0.00032876,2]
[398097561,1765363958165,-504.31639925,0.00032876,2]
[398097562,1765363958174,-504.31639925,0.00032876,2]
[398097563,1765363958183,-504.31639925,0.00032876,2]
[398097564,1765363958193,-504.31639925,0.00032876,2]
[398097565,1765363958202,-11222.18241822,0.00032876,2]
[398097566,1765363958211,-3044.3384827,0.00032876,2]
[398097567,1765363958220,-3044.3384827,0.00032876,2]
[398097568,1765363958230,-3044.3384827,0.00032876,2]
[398097569,1765363958240,-500.0,0.00032876,120]
[398097570,1765363958250,-3434.93764485,0.00032877,2]
[398097571,1765363958259,-1000.0,0.00032877,10]
[398097572,1765363958269,-1000.0,0.00032877,10]
[398097573,1765363958279,-460.0,0.00032877,10]
[398097574,1765363958288,-1000.0,0.00032877,10]
[398097575,1765363958296,-672.0,0.00032877,10]
[398097576,1765363958305,-525.0,0.00032877,10]
[398097577,1765363958313,-1000.0,0.00032877,10]
[398097578,1765363958321,-1000.0,0.00032877,10]
[398097579,1765363958329,-1000.0,0.00032877,10]
[398097580,1765363958338,-1000.0,0.00032877,10]
[398097581,1765363958347,-1000.0,0.00032877,10]
[398097582,1765363958356,-341.92,0.00032877,2]
[398097583,1765363958365,-1000.0,0.00032877,10]
[398097584,1765363958374,-1000.0,0.00032877,10]
[398097585,1765363958384,-1000.0,0.00032877,10]
[398097586,1765363958394,-1000.0,0.00032877,10]
[398097587,1765363958403,-1000.0,0.00032877,10]
[398097588,1765363958413,-1000.0,0.00032877,10]
[398097589,1765363958422,-1000.0,0.00032877,10]
[398097590,1765363958437,-1552.49,0.00032877,2]
[398097591,1765363958446,-1000.0,0.00032877,10]
[398097592,1765363958455,-342.0,0.00032877,10]
[398097593,1765363958465,-1000.0,0.00032877,10]
[398097594,1765363958474,-1000.0,0.00032877,10]
[398097595,1765363958483,-1000.0,0.00032877,10]
[398097596,1765363958492,-1000.0,0.00032877,10]
[398097597,1765363958501,-1000.0,0.00032877,10]
[398097598,1765363958511,-151.0,0.00032877,31]
[398097599,1765363958520,-151.0,0.00032877,31]
[398097600,1765363958530,-151.0,0.00032877,31]
[398097601,1765363958540,-151.0,0.00032877,31]
[398097602,1765363958549,-196.57737,0.00032877,31]
[398097603,1765363958560,-1000.0,0.00032877,10]
[398097604,1765363958569,-1000.0,0.00032877,10]
[398097605,1765363958579,-564.0,0.00032877,7]
[398097606,1765363958588,-500.0,0.00032877,2]
[398097607,1765363958598,-500.0,0.00032877,2]
[398097608,1765363958608,-500.0,0.00032877,2]
[398097609,1765363958618,-410.23652797,0.00032877,2]
[398097610,1765363958628,-150.0,0.00032877,2]
[398097611,1765363958638,-500.0,0.00032877,7]
[398097612,1765363958647,-500.0,0.00032877,7]
[398097613,1765363958657,-500.0,0.00032877,7]
[398097614,1765363958666,-500.0,0.00032877,7]
[398097615,1765363958676,-500.0,0.00032877,7]
[398097616,1765363958685,-500.0,0.00032877,7]
[398097617,1765363958695,-632.57689843,0.00032877,7]
[398097618,1765363958705,-500.0,0.00032877,7]
[398097619,1765363958714,-500.0,0.00032877,7]
[398097620,1765363958724,-500.0,0.00032877,7]
[398097621,1765363958734,-500.0,0.00032877,7]
[398097622,1765363958743,-625.8418776,0.00032877,7]
[398097623,1765363958753,-1000.0,0.00032899,30]
[398097624,1765363958762,-500.0,0.000329,45]
[398097625,1765363958771,-500.0,0.000329,45]
[398097626,1765363958781,-152.29295038,0.00033,2]
[398097627,1765363958790,-32979.79204915,0.00033,13]
[398097628,1765363958800,-51176.86472526,0.00033,2]
[398097629,1765363958809,-1857.31823612,0.00033,2]
[398097630,1765363958818,-578.48,0.00033,14]
[398097631,1765363958827,-3294.11,0.00033,2]
[398097632,1765363958837,-6662.98,0.00033,5]
[398097633,1765363958847,-2679.08671932,0.00033,120]
[398097634,1765363958857,-150.0,0.00033,120]
[398097635,1765363958866,-329.0,0.00033,120]
[398097636,1765363958876,-1900.0,0.00033,2]
[398097637,1765363958885,-551.163438,0.00033,14]
[398097638,1765363958895,-2893.77007941,0.00033,120]
[398097639,1765363958904,-9980.898,0.00033,120]
[398097640,1765363958914,-10771.22240445,0.00033,120]
[398097641,1765363958924,-650.0,0.00033,2]
[398097642,1765363958933,-200.0,0.00033,120]
[398097643,1765363958943,-533.928067,0.00033,8]
[398097644,1765363958953,-150.0,0.00033014,2]
[398097645,1765363958963,-3000.0,0.00033078,14]
[398097646,1765363958973,-1900.0,0.00033078,14]
[398097647,1765363958983,-832.69,0.000331,60]
[398097648,1765363958996,-150.0,0.00033151,2]
[398097649,1765363959007,-818.98,0.00033165,2]
[398097650,1765363959018,-236.45582057,0.00033288,2]
[398097651,1765363959027,-3931.04,0.000334,30]
[398097652,1765363959038,-1201.52152266,0.000335,2]
[398097653,1765363959047,-564.0,0.00033562,7]
[398097654,1765363959058,-500.0,0.00033698,120]
[398097655,1765363959068,-163.74048114,0.00033753,2]
[398097656,1765363959077,-1000.0,0.00033899,30]
[398097657,1765363959093,-2893.77007941,0.000339,120]
[398097658,1765363959103,-9980.898,0.000339,120]
[398097659,1765363959113,-10771.22240445,0.000339,120]
[398097660,1765363959123,-500.0,0.00033939,60]
[398097661,1765363959138,-307.212418,0.00033999,120]
[398097662,1765363959148,-324.30295055,0.00034,2]
[398097663,1765363959157,-903.63673823,0.00034,30]
[398097664,1765363959167,-393.95,0.00034,30]
[398097665,1765363959176,-150.0,0.00034,90]
[398097666,1765363959186,-150.0,0.00034,60]
[398097667,1765363959195,-250.0,0.00034,120]
[398097668,1765363959204,-564.0,0.00034247,7]
[398097669,1765363959214,-2018.47,0.00034327,30]
[398097670,1765363959224,-1000.0,0.00034448,14]
[398097671,1765363959234,-1716.6613763,0.0003449,2]
[398097672,1765363959243,-2233.64636406,0.000345,14]
[398097673,1765363959253,-283.62,0.00034511,30]
[398097674,1765363959263,-500.0,0.0003452,120]
[398097675,1765363959272,-3000.0,0.00034722,14]
[398097676,1765363959282,-1900.0,0.00034722,14]
[398097677,1765363959290,-295.19322242,0.0003488,120]
[398097678,1765363959300,-210.0,0.0003488,30]
[398097679,1765363959309,-1000.0,0.00034899,30]
[398097680,1765363959318,-3791.01228922,0.000349,24]
[398097681,1765363959327,-564.0,0.00034932,7]
[398097682,1765363959337,-403.83244993,0.00035,2]
[398097683,1765363959346,-1000.0,0.00035,7]
[398097684,1765363959355,-1000.0,0.00035,2]
[398097685,1765363959365,-1000.0,0.00035,10]
[398097686,1765363959374,-400.0,0.00035,5]
[398097687,1765363959383,-151.0,0.00035,2]
[398097688,1765363959392,-200.0,0.00035,7]
[398097689,1765363959401,-150.0,0.00035,7]
[398097690,1765363959411,-150.0,0.00035,2]
[398097691,1765363959420,-150.0,0.00035,10]
[398097692,1765363959429,-237.0,0.00035,2]
[398097693,1765363959438,-150.0,0.00035,120]
[398097694,1765363959447,-171.5252001,0.00035,15]
[398097695,1765363959456,-8365.74434048,0.00035,30]
[398097696,1765363959466,-8887.4446169,0.00035,30]
[398097697,1765363959475,-2391.86801871,0.00035,30]
[398097698,1765363959484,-2893.77007941,0.00035,120]
[398097699,1765363959493,-9980.898,0.00035,120]
[398097700,1765363959501,-10771.22240445,0.00035,120]
[398097701,1765363959510,-5000.0,0.00035,5]
[398097702,1765363959519,-2500.0,0.000353,14]
[398097703,1765363959528,-500.0,0.00035342,120]
[398097704,1765363959537,-1216.09,0.00035342,2]
[398097705,1765363959546,-463.69,0.00035342,2]
[398097706,1765363959555,-1216.09,0.00035342,2]
[398097707,1765363959564,-1216.09,0.00035342,2]
[398097708,1765363959573,-1216.09,0.00035342,2]
[398097709,1765363959582,-847.78,0.00035342,2]
[398097710,1765363959591,-2000.0,0.000355,2]
[398097711,1765363959600,-174.3974991,0.00035562,7]
[398097712,1765363959609,-419.40786216,0.0003561,2]
[398097713,1765363959618,-178.0,0.00035616,30]
[398097714,1765363959627,-564.0,0.00035616,14]
[398097715,1765363959636,-1552.49,0.00035616,2]
[398097716,1765363959645,-376.60531767,0.00035616,2]
[398097717,1765363959653,-151.0,0.000358,2]
[398097718,1765363959662,-245.77,0.0003589,7]
[398097719,1765363959671,-564.0,0.0003589,14]
[398097720,1765363959680,-1000.0,0.00035899,30]
[398097721,1765363959689,-10766.0640359,0.00036,2]
[398097722,1765363959698,-152.10481441,0.00036,2]
[398097723,1765363959706,-232649.06497253,0.00036,2]
[398097724,1765363959715,-578.48,0.00036,14]
[398097725,1765363959724,-3294.11,0.00036,2]
[398097726,1765363959733,-305.6562778,0.00036,120]
[398097727,1765363959742,-270.0594498,0.00036,30]
[398097728,1765363959751,-150.0,0.00036,90]
[398097729,1765363959759,-150.0,0.00036,60]
[398097730,1765363959768,-300.0,0.00036,120]
[398097731,1765363959777,-2893.77007941,0.00036,120]
[398097732,1765363959786,-9980.898,0.00036,120]
[398097733,1765363959795,-10771.22240445,0.00036,120]
[398097734,1765363959804,-169.93355493,0.00036,30]
[398097735,1765363959813,-5000.0,0.00036088,2]
[398097736,1765363959822,-1489.37,0.00036089,2]
[398097737,1765363959831,-1000.0,0.00036092,14]
[398097738,1765363959840,-5000.0,0.00036123,2]
[398097739,1765363959849,-5000.0,0.00036127,2]
[398097740,1765363959859,-500.0,0.00036164,120]
[398097741,1765363959868,-564.0,0.00036164,14]
[398097742,1765363959877,-1216.09,0.00036164,2]
[398097743,1765363959886,-5000.0,0.00036166,2]
[398097744,1765363959895,-5000.0,0.00036183,2]
[398097745,1765363959904,-954.3,0.00036194,2]
[398097746,1765363959913,-5000.0,0.0003622,2]
[398097747,1765363959923,-5000.0,0.00036242,2]
[398097748,1765363959931,-5000.0,0.00036247,2]
[398097749,1765363959941,-4634.41,0.00036249,2]
[398097750,1765363959949,-654.9,0.00036256,2]
[398097751,1765363959958,-5000.0,0.0003626,2]
[398097752,1765363959967,-25000.0,0.00036275,2]
[398097753,1765363959976,-5000.0,0.00036286,2]
[398097754,1765363959985,-5000.0,0.00036286,2]
[398097755,1765363959997,-480.36,0.00036301,2]
[398097756,1765363960006,-642.95,0.00036336,2]
[398097757,1765363960015,-5000.0,0.0003635,2]
[398097758,1765363960024,-5000.0,0.00036351,2]
[398097759,1765363960035,-5000.0,0.00036352,2]
[398097760,1765363960044,-230.96422459,0.00036359,120]
[398097761,1765363960054,-5000.0,0.0003636,2]
[398097762,1765363960063,-3000.0,0.00036366,14]
[398097763,1765363960076,-1900.0,0.00036366,14]
[398097764,1765363960084,-25000.0,0.00036374,2]
[398097765,1765363960093,-5000.0,0.00036387,2]
[398097766,1765363960102,-659.52,0.000364,2]
[398097767,1765363960111,-5000.0,0.00036421,2]
[398097768,1765363960120,-25000.0,0.00036432,2]
[398097769,1765363960128,-5000.0,0.00036437,2]
[398097770,1765363960138,-564.0,0.00036438,14]
[398097771,1765363960147,-5000.0,0.00036466,2]
[398097772,1765363960156,-2546.19,0.00036476,2]
[398097773,1765363960165,-5000.0,0.00036511,2]
[398097774,1765363960174,-4688.2,0.00036511,2]
[398097775,1765363960183,-5000.0,0.0003653,2]
[398097776,1765363960191,-5000.0,0.00036534,2]
[398097777,1765363960201,-5000.0,0.00036534,2]
[398097778,1765363960210,-5000.0,0.0003656,2]
[398097779,1765363960219,-4451.56,0.00036579,2]
[398097780,1765363960229,-5000.0,0.0003659,2]
[398097781,1765363960239,-25000.0,0.0003661,2]
[398097782,1765363960249,-5000.0,0.00036623,2]
[398097783,1765363960259,-3303.49,0.00036645,2]
[398097784,1765363960268,-5000.0,0.00036651,2]
[398097785,1765363960277,-25000.0,0.00036655,2]
[398097786,1765363960287,-5000.0,0.00036702,2]
[398097787,1765363960296,-1666.57,0.00036703,2]
[398097788,1765363960305,-564.0,0.00036712,14]
[398097789,1765363960314,-5000.0,0.00036714,2]
[398097790,1765363960324,-5000.0,0.00036724,2]
[398097791,1765363960333,-5000.0,0.00036743,2]
[398097792,1765363960342,-5000.0,0.00036791,2]
[398097793,1765363960351,-5000.0,0.00036795,2]
[398097794,1765363960360,-1596.15402295,0.000368,2]
[398097795,1765363960369,-1937.33751179,0.000368,2]
[398097796,1765363960379,-207.53,0.000368,60]
[398097797,1765363960388,-11038.66954192,0.000368,120]